[Event "Blixt-SM 2021"]
[Site "Elite Hotel Marina Plaza, Kungstorget 6, Helsingborg, Sweden"]
[Date "2021.11.14"]
[Round "8.8"]
[White "Strom-Engdahl, Alexander"]
[Black "Frisk, Ellinor"]
[Result "1-0"]
[TimeControl "3 minutes + 2 seconds per move."]
[BlackTitle "WIM"]
[WhiteFideId "1741586"]
[BlackFideId "1708481"]
[WhiteElo "1783"]
[BlackElo "2142"]

1. d4 {[%clk 00:03:03]} d5 {[%clk 00:03:03]} {[%emt 00:00:02]} 2. Nf3 {[%clk
00:03:03]} {[%emt 00:00:02]} Nf6 {[%clk 00:03:03]} {[%emt 00:00:02]} 3. Bf4
{[%clk 00:03:04]} {[%emt 00:00:02]} c5 {[%clk 00:02:58]} {[%emt 00:00:07]} 4.
e3 {[%clk 00:03:04]} {[%emt 00:00:01]} Nc6 {[%clk 00:02:54]} {[%emt 00:00:06]}
5. Be2 {[%clk 00:02:51]} {[%emt 00:00:15]} Bg4 {[%clk 00:02:37]} {[%emt
00:00:19]} 6. Nbd2 {[%clk 00:02:17]} {[%emt 00:00:35]} e6 {[%clk 00:02:31]}
{[%emt 00:00:09]} 7. O-O {[%clk 00:02:17]} {[%emt 00:00:02]} Be7 {[%clk
00:02:29]} {[%emt 00:00:04]} 8. dxc5 {[%clk 00:02:14]} {[%emt 00:00:05]} Bxc5
{[%clk 00:02:24]} {[%emt 00:00:07]} 9. c4 {[%clk 00:02:14]} {[%emt 00:00:02]}
O-O {[%clk 00:02:15]} {[%emt 00:00:11]} 10. Rc1 {[%clk 00:02:07]} {[%emt
00:00:09]} Be7 {[%clk 00:02:05]} {[%emt 00:00:12]} 11. a3 {[%clk 00:01:49]}
{[%emt 00:00:20]} Rc8 {[%clk 00:01:48]} {[%emt 00:00:19]} 12. b4 {[%clk
00:01:41]} {[%emt 00:00:10]} dxc4 {[%clk 00:01:35]} {[%emt 00:00:16]} 13. Nxc4
{[%clk 00:01:36]} {[%emt 00:00:07]} Qxd1 {[%clk 00:01:25]} {[%emt 00:00:12]} 14.
Rfxd1 {[%clk 00:01:35]} {[%emt 00:00:03]} Nd5 {[%clk 00:01:25]} {[%emt
00:00:01]} 15. Bg3 {[%clk 00:01:23]} {[%emt 00:00:14]} Rfd8 {[%clk 00:01:18]}
{[%emt 00:00:10]} 16. e4 {[%clk 00:00:57]} {[%emt 00:00:27]} Nf6 {[%clk
00:01:11]} {[%emt 00:00:09]} 17. e5 {[%clk 00:00:54]} {[%emt 00:00:06]} Rxd1+
{[%clk 00:01:02]} {[%emt 00:00:11]} 18. Rxd1 {[%clk 00:00:50]} {[%emt
00:00:05]} Nd5 {[%clk 00:01:03]} 19. Nd6 {[%clk 00:00:33]} {[%emt 00:00:19]}
Rb8 {[%clk 00:00:51]} {[%emt 00:00:14]} 20. Rc1 {[%clk 00:00:29]} {[%emt
00:00:06]} Kf8 {[%clk 00:00:41]} {[%emt 00:00:12]} 21. b5 {[%clk 00:00:30]} Na5
{[%clk 00:00:41]} {[%emt 00:00:03]} 22. Nd4 {[%clk 00:00:24]} {[%emt 00:00:08]}
Bxe2 {[%clk 00:00:41]} {[%emt 00:00:02]} 23. Nxe2 {[%clk 00:00:25]} b6 {[%clk
00:00:20]} {[%emt 00:00:23]} 24. Rc8+ {[%clk 00:00:20]} {[%emt 00:00:07]} Rxc8
{[%clk 00:00:18]} {[%emt 00:00:04]} 25. Nxc8 {[%clk 00:00:20]} {[%emt
00:00:01]} Nc4 {[%clk 00:00:16]} {[%emt 00:00:04]} 26. a4 {[%clk 00:00:15]}
{[%emt 00:00:07]} Nb2 {[%clk 00:00:17]} 27. Nxa7 {[%clk 00:00:16]} {[%emt
00:00:02]} Nxa4 {[%emt 00:00:01]} 28. Nd4 {[%clk 00:00:12]} {[%emt 00:00:05]}
Ke8 {[%clk 00:00:16]} {[%emt 00:00:04]} 29. Kf1 {[%clk 00:00:10]} {[%emt
00:00:03]} Kd7 {[%clk 00:00:16]} {[%emt 00:00:02]} 30. Ke2 {[%clk 00:00:11]}
{[%emt 00:00:01]} Bc5 {[%clk 00:00:14]} {[%emt 00:00:05]} 31. Nb3 {[%clk
00:00:10]} {[%emt 00:00:02]} Kc7 {[%clk 00:00:10]} {[%emt 00:00:06]} 32. Kd3
{[%clk 00:00:09]} {[%emt 00:00:03]} Kb7 {[%clk 00:00:09]} {[%emt 00:00:03]} 33.
Nc6 {[%clk 00:00:10]} {[%emt 00:00:01]} Kc7 {[%clk 00:00:07]} {[%emt 00:00:04]}
34. f3 {[%clk 00:00:08]} {[%emt 00:00:04]} Nac3 {[%clk 00:00:07]} {[%emt
00:00:02]} 35. Be1 {[%clk 00:00:08]} {[%emt 00:00:02]} Nxb5 {[%clk 00:00:07]}
{[%emt 00:00:02]} 36. Ncd4 {[%clk 00:00:08]} {[%emt 00:00:02]} Nxd4 {[%clk
00:00:08]} {[%emt 00:00:01]} 37. Nxd4 {[%clk 00:00:09]} {[%emt 00:00:01]} Bxd4
{[%clk 00:00:09]} 38. Kxd4 {[%clk 00:00:10]} Kc6 {[%clk 00:00:10]} 39. h4
{[%clk 00:00:11]} {[%emt 00:00:01]} b5 {[%clk 00:00:11]} {[%emt 00:00:02]} 40.
h5 {[%clk 00:00:12]} g6 {[%clk 00:00:12]} 41. hxg6 {[%clk 00:00:12]} {[%emt
00:00:02]} hxg6 {[%clk 00:00:13]} 42. Bd2 {[%clk 00:00:13]} Nc7 {[%clk
00:00:12]} {[%emt 00:00:03]} 43. Bb4 {[%clk 00:00:13]} {[%emt 00:00:01]} Na6
{[%clk 00:00:13]} {[%emt 00:00:02]} 44. Bd6 {[%clk 00:00:14]} {[%emt 00:00:01]}
Nc7 {[%clk 00:00:09]} {[%emt 00:00:05]} 45. Bxc7 Kxc7 {[%clk 00:00:11]} 46. Kc5
{[%clk 00:00:08]} Kd7 {[%clk 00:00:09]} {[%emt 00:00:04]} 47. Kxb5 {[%clk
00:00:08]} {[%emt 00:00:02]} f6 {[%clk 00:00:10]} 48. f4 {[%clk 00:00:10]} fxe5
{[%clk 00:00:12]} 49. fxe5 {[%clk 00:00:11]} g5 {[%clk 00:00:11]} {[%emt
00:00:03]} 50. g4 {[%clk 00:00:11]} {[%emt 00:00:02]} Ke7 {[%clk 00:00:09]}
{[%emt 00:00:03]} 51. Kc6 {[%clk 00:00:11]} {[%emt 00:00:02]} Ke8 {[%clk
00:00:09]} {[%emt 00:00:03]} 52. Kd6 {[%clk 00:00:12]} {[%emt 00:00:01]} Kf7
{[%clk 00:00:10]} 53. Kd7 {[%clk 00:00:13]} 1-0

[Event "Blixt-SM 2021"]
[Site "Elite Hotel Marina Plaza, Kungstorget 6, Helsingborg, Sweden"]
[Date "2021.11.14"]
[Round "10.7"]
[White "Neretljak, Nedzad"]
[Black "Rajcevski, Dejan"]
[Result "0-1"]
[TimeControl "3 minutes + 2 seconds per move."]
[WhiteFideId "1713132"]
[BlackFideId "1759027"]
[WhiteElo "2148"]
[BlackElo "1977"]

1. e4 {[%clk 00:03:03]} e5 {[%clk 00:03:03]} {[%emt 00:00:02]} 2. d4 {[%clk
00:03:03]} {[%emt 00:00:02]} exd4 {[%clk 00:03:02]} {[%emt 00:00:03]} 3. c3
{[%clk 00:03:04]} Nc6 {[%clk 00:03:02]} {[%emt 00:00:02]} 4. cxd4 {[%clk
00:03:03]} {[%emt 00:00:02]} d5 {[%clk 00:03:02]} {[%emt 00:00:03]} 5. e5
{[%clk 00:02:53]} {[%emt 00:00:12]} Bf5 {[%clk 00:03:02]} {[%emt 00:00:02]} 6.
a3 {[%clk 00:02:54]} {[%emt 00:00:01]} Nge7 {[%clk 00:02:55]} {[%emt 00:00:09]}
7. Nf3 {[%clk 00:02:54]} {[%emt 00:00:01]} Ng6 {[%clk 00:02:56]} {[%emt
00:00:02]} 8. Nc3 {[%clk 00:02:52]} {[%emt 00:00:04]} Be7 {[%clk 00:02:56]}
{[%emt 00:00:02]} 9. Bd3 {[%clk 00:02:48]} {[%emt 00:00:06]} Bg4 {[%clk
00:02:45]} {[%emt 00:00:14]} 10. Be2 {[%clk 00:02:44]} {[%emt 00:00:06]} Qd7
{[%clk 00:02:36]} {[%emt 00:00:11]} 11. Be3 {[%clk 00:02:43]} {[%emt 00:00:02]}
a6 {[%clk 00:02:36]} {[%emt 00:00:02]} 12. b4 {[%clk 00:02:39]} {[%emt
00:00:05]} O-O {[%clk 00:02:35]} {[%emt 00:00:04]} 13. h3 {[%clk 00:02:39]}
{[%emt 00:00:02]} Be6 {[%clk 00:02:34]} {[%emt 00:00:03]} 14. h4 {[%clk
00:02:29]} {[%emt 00:00:13]} f5 {[%clk 00:02:33]} {[%emt 00:00:03]} 15. h5
{[%clk 00:02:23]} {[%emt 00:00:08]} Nh8 {[%clk 00:02:31]} {[%emt 00:00:03]} 16.
h6 {[%clk 00:02:22]} {[%emt 00:00:03]} g6 {[%clk 00:02:27]} {[%emt 00:00:06]}
17. Bg5 {[%clk 00:02:20]} {[%emt 00:00:03]} Nf7 {[%clk 00:02:21]} {[%emt
00:00:09]} 18. Bxe7 {[%clk 00:02:11]} {[%emt 00:00:11]} Qxe7 {[%clk 00:02:12]}
{[%emt 00:00:11]} 19. Qd2 {[%clk 00:02:12]} {[%emt 00:00:01]} b5 {[%clk
00:02:02]} {[%emt 00:00:13]} 20. Rc1 {[%clk 00:02:12]} Ncd8 {[%clk 00:01:48]}
{[%emt 00:00:16]} 21. Nd1 {[%clk 00:02:08]} {[%emt 00:00:06]} c6 {[%clk
00:01:43]} {[%emt 00:00:07]} 22. Ne3 {[%clk 00:02:06]} {[%emt 00:00:04]} Bd7
{[%clk 00:01:40]} {[%emt 00:00:06]} 23. O-O {[%clk 00:01:57]} {[%emt 00:00:10]}
Ne6 {[%clk 00:01:41]} {[%emt 00:00:01]} 24. Ne1 {[%clk 00:01:56]} {[%emt
00:00:02]} Nfg5 {[%clk 00:01:41]} {[%emt 00:00:03]} 25. f3 {[%clk 00:01:47]}
{[%emt 00:00:11]} Nf7 {[%clk 00:01:38]} {[%emt 00:00:06]} 26. Rf2 {[%clk
00:01:43]} {[%emt 00:00:06]} Qh4 {[%clk 00:01:37]} {[%emt 00:00:02]} 27. g4
{[%clk 00:01:35]} {[%emt 00:00:09]} f4 {[%clk 00:01:25]} {[%emt 00:00:15]} 28.
N3g2 {[%clk 00:01:35]} {[%emt 00:00:01]} Qxh6 {[%clk 00:01:25]} {[%emt
00:00:02]} 29. Nd3 {[%clk 00:01:27]} {[%emt 00:00:11]} Nfg5 {[%clk 00:01:24]}
{[%emt 00:00:04]} 30. Nc5 {[%clk 00:01:22]} {[%emt 00:00:07]} Nxc5 {[%clk
00:01:18]} {[%emt 00:00:08]} 31. bxc5 {[%clk 00:01:20]} {[%emt 00:00:03]} Nh3+
{[%clk 00:01:17]} {[%emt 00:00:03]} 32. Kf1 Nxf2 33. Kxf2 {[%clk 00:01:19]} a5
{[%clk 00:01:08]} {[%emt 00:00:12]} 34. Bd3 {[%clk 00:01:20]} Rf7 {[%clk
00:00:44]} {[%emt 00:00:25]} 35. Re1 {[%clk 00:01:21]} Qh3 {[%clk 00:00:41]}
{[%emt 00:00:06]} 36. e6 {[%clk 00:01:21]} {[%emt 00:00:03]} Qg3+ {[%clk
00:00:40]} {[%emt 00:00:04]} 37. Kf1 {[%clk 00:01:22]} Qxf3+ {[%clk 00:00:26]}
{[%emt 00:00:17]} 38. Kg1 {[%clk 00:01:23]} Bxe6 {[%clk 00:00:20]} {[%emt
00:00:08]} 39. Rxe6 {[%clk 00:01:24]} Qxg4 {[%clk 00:00:20]} {[%emt 00:00:02]}
40. Kf2 {[%clk 00:01:11]} {[%emt 00:00:15]} Qxe6 {[%clk 00:00:21]} {[%emt
00:00:02]} 0-1

[Event "Blixt-SM 2021"]
[Site "Elite Hotel Marina Plaza, Kungstorget 6, Helsingborg, Sweden"]
[Date "2021.11.14"]
[Round "1.8"]
[White "Nilsson, Patrik"]
[Black "Persson, Michael"]
[Result "1-0"]
[TimeControl "3 minutes + 2 seconds per move."]
[WhiteFideId "1708171"]
[BlackFideId "1764179"]
[WhiteElo "2143"]
[BlackElo "1700"]

1. d4 {[%clk 00:03:02]} {[%emt 00:00:02]} e6 {[%clk 00:03:03]} {[%emt
00:00:02]} 2. Bf4 {[%clk 00:03:03]} {[%emt 00:00:01]} d5 {[%clk 00:03:04]}
{[%emt 00:00:02]} 3. e3 {[%clk 00:03:03]} {[%emt 00:00:01]} Nf6 {[%clk
00:03:04]} 4. Nd2 {[%clk 00:03:03]} {[%emt 00:00:02]} Nc6 {[%clk 00:03:04]}
{[%emt 00:00:03]} 5. Ngf3 {[%clk 00:02:56]} {[%emt 00:00:08]} Be7 {[%clk
00:03:05]} {[%emt 00:00:02]} 6. Ne5 {[%clk 00:02:56]} {[%emt 00:00:02]} O-O
{[%clk 00:02:59]} {[%emt 00:00:07]} 7. c3 {[%clk 00:02:53]} {[%emt 00:00:06]}
a5 {[%clk 00:02:55]} {[%emt 00:00:06]} 8. Bd3 {[%clk 00:02:53]} {[%emt
00:00:02]} Bd6 {[%clk 00:02:40]} {[%emt 00:00:17]} 9. Qe2 {[%clk 00:02:52]}
{[%emt 00:00:03]} Re8 {[%clk 00:02:27]} {[%emt 00:00:15]} 10. Rd1 {[%clk
00:02:45]} {[%emt 00:00:08]} Bd7 {[%clk 00:02:12]} {[%emt 00:00:18]} 11. e4
{[%clk 00:02:35]} {[%emt 00:00:12]} dxe4 {[%clk 00:02:07]} {[%emt 00:00:07]} 12.
Nxe4 {[%clk 00:02:36]} {[%emt 00:00:02]} Nxe4 {[%clk 00:02:05]} {[%emt
00:00:03]} 13. Qxe4 {[%clk 00:02:29]} {[%emt 00:00:08]} f5 {[%clk 00:01:58]}
{[%emt 00:00:10]} 14. Qf3 {[%clk 00:02:18]} {[%emt 00:00:13]} Nxe5 {[%clk
00:01:50]} {[%emt 00:00:10]} 15. dxe5 {[%clk 00:02:08]} {[%emt 00:00:12]} Bc5
{[%emt 00:00:06]} 16. O-O {[%clk 00:02:01]} {[%emt 00:00:07]} b6 {[%clk
00:01:42]} {[%emt 00:00:08]} 17. Bb5 {[%clk 00:01:49]} {[%emt 00:00:14]} c6
{[%clk 00:00:49]} {[%emt 00:00:55]} 18. Rxd7 {[%clk 00:01:29]} {[%emt
00:00:22]} Qxd7 {[%clk 00:00:48]} {[%emt 00:00:02]} 19. Bxc6 {[%clk 00:01:30]}
{[%emt 00:00:02]} Qe7 {[%clk 00:00:28]} {[%emt 00:00:21]} 20. Bxa8 {[%clk
00:01:29]} {[%emt 00:00:04]} Rxa8 {[%clk 00:00:26]} {[%emt 00:00:04]} 21. Qxa8+
{[%clk 00:01:29]} {[%emt 00:00:02]} Kf7 {[%clk 00:00:21]} {[%emt 00:00:07]} 22.
Qf3 {[%clk 00:01:26]} {[%emt 00:00:05]} Qd7 {[%clk 00:00:14]} {[%emt 00:00:09]}
23. Rd1 {[%clk 00:01:26]} {[%emt 00:00:02]} Qe7 {[%clk 00:00:15]} 24. Qc6
{[%clk 00:01:24]} {[%emt 00:00:04]} g5 {[%clk 00:00:11]} {[%emt 00:00:06]} 25.
Rd7 {[%clk 00:01:24]} {[%emt 00:00:02]} 1-0

[Event "Blixt-SM 2021"]
[Site "Elite Hotel Marina Plaza, Kungstorget 6, Helsingborg, Sweden"]
[Date "2021.11.14"]
[Round "3.6"]
[White "Andersson, Stefan"]
[Black "Smith, Axel"]
[Result "0-1"]
[TimeControl "3 minutes + 2 seconds per move."]
[BlackTitle "GM"]
[WhiteFideId "1729535"]
[BlackFideId "1707930"]
[WhiteElo "1985"]
[BlackElo "2473"]

1. e4 {[%clk 00:03:03]} c5 {[%clk 00:03:04]} 2. d4 {[%clk 00:03:03]} {[%emt
00:00:02]} cxd4 {[%clk 00:03:05]} {[%emt 00:00:01]} 3. Nf3 {[%clk 00:03:04]}
{[%emt 00:00:01]} e6 {[%clk 00:03:02]} {[%emt 00:00:05]} 4. c3 {[%clk
00:03:05]} Nf6 {[%clk 00:02:49]} {[%emt 00:00:15]} 5. e5 {[%clk 00:03:05]}
{[%emt 00:00:02]} Nd5 {[%clk 00:02:50]} 6. cxd4 {[%clk 00:03:05]} {[%emt
00:00:03]} b6 {[%clk 00:02:47]} {[%emt 00:00:05]} 7. Bd3 {[%clk 00:03:02]}
{[%emt 00:00:04]} Be7 {[%clk 00:02:31]} {[%emt 00:00:18]} 8. O-O {[%clk
00:03:02]} {[%emt 00:00:02]} Bb7 {[%clk 00:02:33]} 9. Nc3 {[%clk 00:03:00]}
{[%emt 00:00:04]} Nxc3 {[%clk 00:02:22]} {[%emt 00:00:13]} 10. bxc3 {[%clk
00:03:01]} {[%emt 00:00:02]} d6 {[%clk 00:02:23]} 11. Bf4 {[%clk 00:02:55]}
{[%emt 00:00:08]} dxe5 {[%clk 00:02:09]} {[%emt 00:00:16]} 12. Nxe5 {[%clk
00:02:48]} {[%emt 00:00:09]} O-O {[%clk 00:02:09]} {[%emt 00:00:02]} 13. Rc1
{[%clk 00:02:47]} {[%emt 00:00:03]} Nd7 {[%clk 00:02:09]} {[%emt 00:00:02]} 14.
h3 {[%clk 00:02:43]} {[%emt 00:00:06]} Nxe5 {[%clk 00:02:09]} {[%emt 00:00:02]}
15. Bxe5 {[%clk 00:02:43]} {[%emt 00:00:02]} Bd6 {[%clk 00:01:53]} {[%emt
00:00:18]} 16. Re1 {[%clk 00:02:24]} {[%emt 00:00:21]} g6 {[%clk 00:01:44]}
{[%emt 00:00:11]} 17. Qg4 {[%clk 00:02:20]} {[%emt 00:00:07]} Rc8 {[%clk
00:01:34]} {[%emt 00:00:12]} 18. h4 {[%clk 00:02:20]} {[%emt 00:00:02]} Bxe5
{[%clk 00:01:28]} {[%emt 00:00:08]} 19. Rxe5 {[%clk 00:02:21]} {[%emt
00:00:01]} Qf6 {[%clk 00:01:14]} {[%emt 00:00:16]} 20. h5 {[%clk 00:02:15]}
{[%emt 00:00:08]} Kg7 {[%clk 00:01:14]} {[%emt 00:00:02]} 21. c4 {[%clk
00:01:46]} {[%emt 00:00:31]} Rfd8 {[%clk 00:01:15]} {[%emt 00:00:01]} 22. Rce1
{[%clk 00:01:44]} {[%emt 00:00:04]} Rd7 {[%clk 00:01:10]} {[%emt 00:00:07]} 23.
Bb1 {[%clk 00:01:38]} {[%emt 00:00:08]} Rcd8 {[%clk 00:01:11]} 24. d5 {[%clk
00:01:10]} {[%emt 00:00:30]} exd5 {[%clk 00:01:08]} {[%emt 00:00:05]} 25. cxd5
{[%clk 00:01:11]} {[%emt 00:00:01]} Rxd5 {[%clk 00:01:06]} {[%emt 00:00:04]} 26.
Rxd5 {[%clk 00:01:10]} {[%emt 00:00:03]} Bxd5 {[%clk 00:01:03]} {[%emt
00:00:04]} 27. Bc2 {[%clk 00:01:04]} {[%emt 00:00:09]} Bxa2 {[%clk 00:00:55]}
{[%emt 00:00:10]} 28. Re3 {[%clk 00:00:59]} {[%emt 00:00:07]} Rd2 {[%clk
00:00:46]} {[%emt 00:00:10]} 29. Re2 {[%clk 00:00:55]} {[%emt 00:00:07]} Rxe2
{[%clk 00:00:39]} {[%emt 00:00:09]} 30. Qxe2 {[%clk 00:00:56]} {[%emt
00:00:01]} Be6 {[%clk 00:00:40]} 31. Qd3 {[%clk 00:00:52]} {[%emt 00:00:05]}
Qe5 {[%clk 00:00:38]} {[%emt 00:00:06]} 32. Qd4 Qxh5 {[%clk 00:00:41]} 33. Qf4
{[%clk 00:00:57]} {[%emt 00:00:07]} Kh6 {[%clk 00:00:39]} 34. Qh2 {[%clk
00:00:57]} {[%emt 00:00:04]} Qg5 {[%clk 00:00:40]} 35. Qc7 {[%clk 00:00:56]}
{[%emt 00:00:04]} Kg7 {[%clk 00:00:41]} 36. Bd3 {[%emt 00:00:11]} Qc5 37. Bc2
0-1

[Event "Blixt-SM 2021"]
[Site "Elite Hotel Marina Plaza, Kungstorget 6, Helsingborg, Sweden"]
[Date "2021.11.14"]
[Round "5.4"]
[White "Rosell, Tomas"]
[Black "Olsson, Linus"]
[Result "0-1"]
[TimeControl "3 minutes + 2 seconds per move."]
[BlackTitle "FM"]
[WhiteFideId "1707132"]
[BlackFideId "1706098"]
[WhiteElo "2070"]
[BlackElo "2204"]

1. e4 {[%clk 00:03:04]} c5 {[%clk 00:03:02]} {[%emt 00:00:02]} 2. Nf3 {[%clk
00:03:05]} {[%emt 00:00:01]} d6 {[%clk 00:03:03]} 3. Nc3 {[%clk 00:03:06]} Nf6
{[%clk 00:03:04]} {[%emt 00:00:01]} 4. d4 {[%clk 00:03:08]} cxd4 {[%clk
00:03:04]} 5. Nxd4 {[%clk 00:03:09]} a6 {[%clk 00:03:05]} {[%emt 00:00:02]} 6.
Bc4 {[%clk 00:03:08]} {[%emt 00:00:03]} e6 {[%clk 00:03:05]} {[%emt 00:00:02]}
7. Bb3 {[%clk 00:03:09]} Nbd7 {[%clk 00:03:04]} {[%emt 00:00:03]} 8. O-O {[%clk
00:03:10]} {[%emt 00:00:02]} Nc5 {[%clk 00:03:05]} {[%emt 00:00:01]} 9. f4
{[%clk 00:03:07]} {[%emt 00:00:05]} Be7 {[%clk 00:03:03]} {[%emt 00:00:04]} 10.
Qf3 {[%clk 00:03:00]} {[%emt 00:00:09]} O-O {[%clk 00:03:00]} {[%emt 00:00:05]}
11. Kh1 {[%clk 00:02:59]} {[%emt 00:00:03]} Qc7 {[%clk 00:02:41]} {[%emt
00:00:21]} 12. Bd2 {[%clk 00:02:38]} {[%emt 00:00:22]} b5 {[%emt 00:00:11]} 13.
a3 Bb7 {[%clk 00:02:31]} {[%emt 00:00:03]} 14. Rae1 {[%clk 00:02:40]} {[%emt
00:00:01]} Nxb3 {[%clk 00:02:30]} {[%emt 00:00:03]} 15. cxb3 {[%clk 00:02:33]}
{[%emt 00:00:09]} Rfe8 {[%clk 00:02:20]} {[%emt 00:00:12]} 16. Qh3 {[%clk
00:02:06]} {[%emt 00:00:29]} Bf8 {[%clk 00:02:07]} {[%emt 00:00:15]} 17. e5
{[%clk 00:02:04]} {[%emt 00:00:04]} Nd7 {[%clk 00:01:39]} {[%emt 00:00:30]} 18.
Nf3 {[%clk 00:01:32]} {[%emt 00:00:34]} Rad8 {[%clk 00:01:26]} {[%emt
00:00:16]} 19. Ne4 {[%clk 00:01:21]} {[%emt 00:00:13]} dxe5 {[%clk 00:01:13]}
{[%emt 00:00:15]} 20. fxe5 {[%clk 00:01:17]} {[%emt 00:00:06]} Nxe5 {[%clk
00:00:45]} {[%emt 00:00:30]} 21. Nxe5 {[%clk 00:01:14]} {[%emt 00:00:05]} Qxe5
{[%clk 00:00:43]} {[%emt 00:00:04]} 22. Nf6+ {[%clk 00:01:12]} {[%emt
00:00:04]} Qxf6 {[%clk 00:00:36]} {[%emt 00:00:09]} 23. Rxf6 {[%clk 00:01:13]}
Rxd2 {[%clk 00:00:26]} {[%emt 00:00:12]} 24. Rxf7 {[%clk 00:00:26]} {[%emt
00:00:49]} Bxg2+ {[%clk 00:00:23]} {[%emt 00:00:06]} 25. Qxg2 {[%clk 00:00:27]}
Rxg2 {[%clk 00:00:23]} {[%emt 00:00:01]} 26. Rxf8+ {[%clk 00:00:27]} {[%emt
00:00:02]} Kxf8 {[%clk 00:00:20]} {[%emt 00:00:06]} 27. Kxg2 {[%emt 00:00:02]}
e5 {[%clk 00:00:20]} 28. Kf3 {[%clk 00:00:29]} Kf7 {[%clk 00:00:21]} {[%emt
00:00:01]} 29. Ke4 {[%clk 00:00:31]} Ke6 {[%clk 00:00:17]} {[%emt 00:00:06]} 30.
Rc1 {[%clk 00:00:32]} Rd8 {[%clk 00:00:18]} {[%emt 00:00:01]} 31. Rc6+ {[%clk
00:00:32]} {[%emt 00:00:01]} Rd6 {[%clk 00:00:19]} 32. Rc7 {[%clk 00:00:34]}
Rd4+ {[%clk 00:00:19]} {[%emt 00:00:02]} 33. Ke3 {[%clk 00:00:35]} Rh4 {[%clk
00:00:16]} {[%emt 00:00:06]} 34. Rxg7 {[%clk 00:00:17]} {[%emt 00:00:20]} Rxh2
{[%clk 00:00:16]} {[%emt 00:00:01]} 35. Ra7 {[%clk 00:00:18]} Kd5 {[%clk
00:00:10]} {[%emt 00:00:09]} 36. Rxa6 {[%clk 00:00:19]} {[%emt 00:00:02]} Rxb2
{[%clk 00:00:10]} {[%emt 00:00:01]} 37. b4 {[%clk 00:00:20]} Rb3+ {[%clk
00:00:11]} {[%emt 00:00:02]} 38. Ke2 {[%clk 00:00:21]} {[%emt 00:00:01]} Ke4
{[%clk 00:00:11]} {[%emt 00:00:01]} 39. Rh6 {[%clk 00:00:20]} {[%emt 00:00:03]}
Rb2+ {[%clk 00:00:12]} {[%emt 00:00:01]} 40. Ke1 {[%clk 00:00:21]} {[%emt
00:00:01]} Kd3 {[%clk 00:00:13]} {[%emt 00:00:02]} 41. Rh3+ {[%clk 00:00:22]}
Kd4 {[%clk 00:00:14]} {[%emt 00:00:01]} 42. Rxh7 {[%clk 00:00:22]} {[%emt
00:00:02]} e4 {[%clk 00:00:15]} 43. Rh8 {[%clk 00:00:19]} {[%emt 00:00:05]} Kd3
{[%clk 00:00:15]} {[%emt 00:00:01]} 44. Rd8+ {[%clk 00:00:20]} Ke3 {[%clk
00:00:16]} {[%emt 00:00:02]} 45. Kf1 {[%clk 00:00:22]} Rb1+ {[%emt 00:00:01]}
46. Kg2 Ke2 {[%clk 00:00:16]} {[%emt 00:00:03]} 47. Rd5 {[%clk 00:00:19]}
{[%emt 00:00:07]} Rb3 {[%clk 00:00:10]} {[%emt 00:00:07]} 48. Rxb5 {[%clk
00:00:19]} {[%emt 00:00:02]} Rxa3 {[%clk 00:00:11]} {[%emt 00:00:01]} 49. Rd5
{[%clk 00:00:19]} {[%emt 00:00:02]} e3 {[%clk 00:00:09]} {[%emt 00:00:03]} 50.
b5 {[%clk 00:00:21]} Ra4 {[%clk 00:00:09]} {[%emt 00:00:03]} 51. Kg3 {[%clk
00:00:22]} {[%emt 00:00:01]} Ke1 {[%emt 00:00:02]} 52. b6 Rb4 {[%clk 00:00:10]}
53. Re5 {[%clk 00:00:24]} {[%emt 00:00:01]} e2 {[%clk 00:00:11]} 54. Kg2 {[%clk
00:00:21]} {[%emt 00:00:04]} Rxb6 {[%clk 00:00:12]} {[%emt 00:00:02]} 55. Rg5
{[%clk 00:00:17]} {[%emt 00:00:07]} Re6 {[%clk 00:00:11]} {[%emt 00:00:02]} 56.
Rg8 {[%clk 00:00:18]} Re5 {[%clk 00:00:10]} {[%emt 00:00:03]} 57. Rg7 {[%clk
00:00:19]} Kd2 {[%clk 00:00:07]} {[%emt 00:00:05]} 58. Rd7+ {[%clk 00:00:19]}
{[%emt 00:00:02]} Ke3 {[%clk 00:00:08]} {[%emt 00:00:01]} 0-1